Cogmind - Beta 13 @@@ ROGUE MODE // 2024.03.26 @ 20:01:01 Player: Arimel The Wise Result: Destroyed by Y-45 Defender with Heavy Assault Rifle Performance ------------- Evolutions (1) 500 Regions Visited (2) 400 Robots Destroyed (22) 110 Value Destroyed (570) 570 Prototype IDs (1) 20 Alien Tech Used (0) 0 Bonus (8) 8 TOTAL SCORE: 1608 Bonus ------- High Alert Combat Kills 8 Cogmind --------- Core Integrity 0/400 Matter 106/300 Energy 99/100 System Corruption 0% Temperature Cool (9) Movement Core (100) Ox1 Location -9/Materials Parts ------- > --- POWER (1) -------- (None) > --- PROPULSION (2) --- (None) > --- UTILITY (4) ------ Small Storage Unit Visual Processing Unit Signal Interpreter > --- WEAPON (2) ------- (None) > --- INVENTORY (8) ---- Light Ion Engine Improved Aluminum Leg Compact Wheel Compact Wheel Flight Unit Medium Matter Pod (60) Visual Processing Unit Peak State ------------ > --- POWER ------------ Heavy Ion Engine > --- PROPULSION ------- Aluminum Leg Aluminum Leg > --- UTILITY ---------- Small Storage Unit Visual Processing Unit Sensor Array Signal Interpreter > --- WEAPON ----------- Grenade Launcher > --- INVENTORY -------- Light Ion Engine Compact Wheel Compact Wheel Flight Unit Medium Matter Pod Visual Processing Unit [Rating: 11] Favorites ----------- Power Light Ion Engine Engine Light Ion Engine Propulsion Aluminum Leg Leg Aluminum Leg Wheel Wheel Utility Small Storage Unit Device Sensor Array Storage Small Storage Unit Processor Visual Processing Unit Weapon Grenade Launcher Ballistic Gun Assault Rifle Launcher Grenade Launcher Build | -11 -10 -9 ------- Run | Yrd Mat Mat Slots Evolved 2 | . . 2 Power . | . . . Propulsion . | . . . Utility 2 | . . 2 Weapon . | . . . Parts Attached 15 | 4 6 5 Power 2 | 1 . 1 Engine 2 | 1 . 1 Core . | . . . Reactor . | . . . Propulsion 5 | 2 3 . Treads . | . . . Leg 2 | . 2 . Wheel 3 | 2 1 . Hover . | . . . Flight . | . . . Utility 4 | 1 1 2 Device 1 | . 1 . Storage 1 | 1 . . Processor 2 | . . 2 Hackware . | . . . Protection . | . . . Artifact . | . . . Weapon 4 | . 2 2 Energy Gun . | . . . Energy Cannon . | . . . Ballistic Gun 1 | . 1 . Ballistic Cannon . | . . . Launcher 3 | . 1 2 Special Weapon . | . . . Impact Weapon . | . . . Slashing Weapon . | . . . Piercing Weapon . | . . . Special Melee Weapon . | . . . Unidentified Prototypes 1 | . . 1 Parts Lost 7 | . . 7 Power 2 | . . 2 Propulsion 2 | . . 2 Utility 1 | . . 1 Weapon 2 | . . 2 Highest Loss Streak 3 | . . 3 To Critical Strikes . | . . . Average Slot Usage (%) 86 | . 90 85 Engine 8 | . 14 7 Leg 15 | . 1 20 Wheel 6 | . 26 . Device 8 | . 6 9 Storage 11 | . 14 11 Processor 16 | . . 22 Ballistic Gun 7 | . 13 5 Launcher 10 | . 13 9 Naked Turns . | . . . Heaviest Build 17 | 8 14 17 Greatest Support 20 | 20 20 20 Greatest Overweight (x) 4 | . 1 4 Average Overweight (x) . | . . . Largest Inventory Capacity 8 | 8 8 8 Average Capacity 7 | 7 8 8 Most Carried 8 | 6 8 7 Average Carried 6 | 3 6 6 Final Capacity 8 | 8 8 8 Final Carried 7 | 6 7 7 Class Distribution -------------------- 62% | Mutant 37% | Skirmisher Dominant Class ---------------- Mutant | -10/Materials Skirmisher | -9/Materials Resources | -11 -10 -9 ----------- Run | Yrd Mat Mat Matter Collected 662 | 240 236 186 Remotely . | . . . Salvage Created 406 | . 235 171 Parts 38 | . 25 13 Haulers Intercepted 1 | . . 1 Recyclers Shooed . | . . . Parts Field Recycled . | . . . Retrieved Matter . | . . . Parts Self-Destructed . | . . . Prevented . | . . . Kills | -11 -10 -9 ------- Run | Yrd Mat Mat Combat Hostiles Destroyed 15 | . 7 8 AOE 15 | . 7 8 Classes Destroyed 8 | . 4 4 Worker 2 | . . 2 Builder 1 | . . 1 Hauler 1 | . . 1 Recycler 1 | . 1 . Watcher 2 | . 2 . Swarmer 3 | . 3 . Grunt 10 | . 4 6 Sentry 2 | . . 2 Best Kill Streak 5 | . 5 3 Combat Bots Only 5 | . 5 2 Max Kills in Single Turn 2 | . 2 2 Gunslinging . | . . . Exploded 2 | . 2 1 Melee . | . . . Uniques/NPCs Destroyed . | . . . Combat | -11 -10 -9 -------- Run | Yrd Mat Mat Hostile Shots Fired 121 | . 9 112 Missed 42 | . 2 40 Damage Taken 1219 | . 81 1138 Core 409 | . 8 401 Absorbed by Shields . | . . . Regen/Repaired (Parts) 97 | . . 97 Core Remaining (%) 98 | 100 96 . Volleys Fired 59 | . 19 40 Largest 1 | . 1 1 Hottest 30 | . 30 30 Shots Fired 59 | . 19 40 Gun 7 | . 7 . Cannon . | . . . Launcher 52 | . 12 40 Special . | . . . Kinetic 7 | . 7 . Thermal . | . . . Explosive 52 | . 12 40 Electromagnetic . | . . . Robot Hit Streak 13 | . 5 13 Robot Miss Streak 2 | . 2 2 Penetration Max . | . . . Secondary Targets . | . . . Shots Hit Robots 27 | . 9 18 Core Hits 54 | . 16 38 Critical Kills . | . . . Critical Parts Destroyed . | . . . Critical Strikes . | . . . Melee Attacks . | . . . Impact . | . . . Slashing . | . . . Piercing . | . . . Sneak Attacks . | . . . Combat Hostiles . | . . . Follow-up Attacks . | . . . Damage Inflicted 1782 | . 512 1270 Guns 47 | . 47 . Cannons . | . . . Explosions 1720 | . 463 1257 Melee . | . . . Ramming 15 | . 2 13 Kinetic 47 | . 47 . Thermal . | . . . Explosive 1720 | . 463 1257 Electromagnetic . | . . . Impact . | . . . Slashing . | . . . Piercing . | . . . Highest Corruption . | . . . Average Corruption . | . . . Corruption Purged . | . . . Corruption Blocked . | . . . Overload Shots . | . . . Overflow Damage 30 | . 14 16 Projectiles . | . . . Explosions 30 | . 14 16 Melee . | . . . Knockbacks . | . . . Impact . | . . . Kinetic . | . . . Secondary . | . . . Self-Inflicted Damage 85 | . 23 62 Shots 6 | . 1 5 Rammed 3 | . 1 2 Targets Rammed 4 | . 1 3 Kicked 1 | . . 1 Crushed . | . . . Highest Temperature 10 | . 10 4 Average Temperature 2 | . 7 1 Received Heat Transfer 339 | . . 339 Siege Activations . | . . . Robots Corrupted . | . . . Combat Hostiles . | . . . Parts Fried . | . . . Impact Corruptions . | . . . Robots Melted . | . . . Combat Hostiles . | . . . Parts Melted . | . . . Heat Transferred . | . . . Parts Sabotaged . | . . . Parts Stolen . | . . . Parts Stripped . | . . . Power Chain Reactions . | . . . Alert | -11 -10 -9 ------- Run | Yrd Mat Mat Peak Influence 410 | . 357 410 Initial 150 | . . 150 Average 248 | . 224 272 Maximum Alert Level 2 | . 1 2 Low Security (%) 16 | 100 32 6 Level 1 82 | . 67 93 Level 2 . | . . . Level 3 . | . . . Level 4 . | . . . Level 5 . | . . . High Security . | . . . Max Security . | . . . Squads Dispatched 4 | . 2 2 Investigation 1 | . . 1 Extermination . | . . . Reinforcement 3 | . 2 1 Assault . | . . . Garrison . | . . . Intercept . | . . . Searches Triggered . | . . . Construction Impeded . | . . . Haulers Reinforced . | . . . Active Scanning Responses . | . . . Cargo Convoy Interrupts . | . . . Stealth | -11 -10 -9 --------- Run | Yrd Mat Mat Distress Signals 2 | . 1 1 Communications Jammed . | . . . Distress Signals . | . . . Times Spotted 28 | . 12 16 Peak Tracking Total 5 | . 3 5 Tactical Retreats 1 | . 1 . Traps | -11 -10 -9 ------- Run | Yrd Mat Mat Traps Triggered 1 | . . 1 Indirectly . | . . . Trap Hack Attempts . | . . . Triggered . | . . . Disarmed . | . . . Reprogrammed . | . . . Reused . | . . . Traps Extracted . | . . . Installed . | . . . Triggered . | . . . Machines | -11 -10 -9 ---------- Run | Yrd Mat Mat Machines Disabled 5 | . 3 2 Max in Single Turn 1 | . 1 1 Machines Repaired . | . . . Machines Dismantled . | . . . Machines Sabotaged . | . . . Overloaded Fab Kills . | . . . Hacking | -11 -10 -9 --------- Run | Yrd Mat Mat Machines Accessed 10 | . 3 7 Terminals 4 | . 1 3 Fabricators . | . . . Repair Stations 2 | . . 2 Recycling Units 4 | . 2 2 Scanalyzers . | . . . Garrison Access . | . . . Total Hacks 29 | . 7 22 Successful 21 | . 5 16 Failed 8 | . 2 6 Catastrophic 1 | . . 1 Database Lockouts . | . . . Manual 8 | . 1 7 Terminals 12 | . 1 11 Fabricators . | . . . Repair Stations 5 | . . 5 Recycling Units 12 | . 6 6 Scanalyzers . | . . . Garrison Access . | . . . Terminal Hacks 3 | . . 3 Branch Access Points 1 | . . 1 Surveillance Status 1 | . . 1 Zone Layout 1 | . . 1 Fabricator Hacks . | . . . Repair Station Hacks 4 | . . 4 Scan Component 2 | . . 2 Repair 2 | . . 2 Recycling Unit Hacks 10 | . 4 6 Process 2 | . . 2 Report Inventory 5 | . 3 2 Retrieve Matter 2 | . . 2 Retrieve Components 1 | . 1 . Scanalyzer . | . . . Garrison Access Hacks . | . . . Unauthorized Hacks 4 | . 1 3 Terminals 4 | . 1 3 Botnet 4 | . 1 3 Fabricators . | . . . Repair Stations . | . . . Recycling Units . | . . . Scanalyzers . | . . . Garrison Access . | . . . Data Cores Recovered . | . . . Used . | . . . Hacking Detections 4 | . . 4 Full Trace Events 1 | . . 1 Feedback Events . | . . . Feedback Blocked . | . . . Robot Schematics Acquired . | . . . Robots Built . | . . . Authchips . | . . . Time . | . . . Total Robot Build Rating . | . . . Part Schematics Acquired . | . . . Parts Built . | . . . Authchips . | . . . Time . | . . . Total Part Build Rating . | . . . Parts Repaired 2 | . . 2 Time 52 | . . 52 Parts Recycled . | . . . Recycled Matter 42 | . . 42 Retrieved Matter 42 | . . 42 Retrieved Components 9 | . 9 . Parts Scanalyzed . | . . . Part Schematics Acquired . | . . . Parts Damaged . | . . . Bothacking | -11 -10 -9 ------------ Run | Yrd Mat Mat Used RIF Installer . | . . . Robots Hacked . | . . . Non-combat . | . . . Combat . | . . . Robot Hacks Applied . | . . . Relay Couplers Released . | . . . Fabnet Peak Effective % . | . . . Robots Rewired . | . . . Allies Hacked . | . . . Hacks Repelled . | . . . Allies | -11 -10 -9 -------- Run | Yrd Mat Mat Total Allies . | . . . Largest Group . | . . . Highest-Rated Group . | . . . Highest-Rated Ally . | . . . Total Orders . | . . . Ally Attacks . | . . . Total Damage . | . . . Kills . | . . . Allies Corrupted . | . . . Allies Melted . | . . . Intel | -11 -10 -9 ------- Run | Yrd Mat Mat Robot Analysis Total . | . . . Derelict Logs Recovered . | . . . Drone Launches . | . . . Drone Recoveries . | . . . Exploration | -11 -10 -9 ------------- Run | Yrd Mat Mat Turns Passed 1277 | 58 313 906 Spaces Moved 867 | 58 269 540 Core 52 | 1 . 51 Treads . | . . . Legs 504 | . 15 489 Wheels 311 | 57 254 . Hover . | . . . Flight . | . . . Fastest Speed 50 | 50 80 100 Average Speed 110 | 79 93 122 Slowest Speed 250 | 80 120 250 Overloaded Moves . | . . . Propulsion Burnouts . | . . . Robots Hopped . | . . . Cave-ins Triggered . | . . . Exploration Rate (%) 31 | 4 44 46 Regions Visited 2 Branch Regions . Pre-discovered Areas . | . . . Known Exits Taken . | . . . Unknown Exits Taken 2 | 1 1 . Scrap Searched . | . . . Spaces Dug 5 | . . 5 Terrain Destroyed 199 | . 67 132 Melee . | . . . Projectile . | . . . AOE 199 | . 67 132 Terrain Rammed . | . . . Walls Destroyed . | . . . Machines Disabled . | . . . Actions | -11 -10 -9 --------- Run | Yrd Mat Mat Total 1123 | 68 311 744 Wait 158 | . 6 152 Move 865 | 57 268 540 Hop . | . . . Pick Up 16 | 7 6 3 Fast Attach 8 | 3 2 3 Attach 4 | 1 1 2 Detach . | . . . Swap 3 | . 3 . Drop 6 | . 5 1 Fire 59 | . 19 40 Melee . | . . . Ram 3 | . 1 2 Kick 1 | . . 1 Crush . | . . . Escape Stasis . | . . . Rewire . | . . . Trap . | . . . Miscellaneous . | . . . Route ------- -11/Scrapyard -10/Materials -9/Materials (discovered 4 exits: [*Mat] / Min x2 / *Sto) History --------- Turn | Location | Event 9 | -11/Scrapyard | Discovered new exit (range 16) 59 | -11/Scrapyard | Entered Materials 162 | -10/Materials | Discovered new exit (range 12) 321 | -10/Materials | Build established: Mutant 372 | -10/Materials | Entered another Materials area 372 | -9/Materials | Evolved 2 slots: Utility x2 388 | -9/Materials | Identified exit to Mines 388 | -9/Materials | Identified exit to Storage 658 | -9/Materials | Build established: Skirmisher 669 | -9/Materials | Discovered new exit (range 13) 739 | -9/Materials | Repaired Grenade Launcher 1126 | -9/Materials | Repaired Grenade Launcher 1166 | -9/Materials | Build established: Mutant 1234 | -9/Materials | Lost 3 parts (2n1w) 1239 | -9/Materials | Core integrity fell below 50% 1274 | -9/Materials | Core integrity fell below 20% 1278 | -9/Materials | Destroyed by Y-45 Defender with Heavy Assault Rifle Last Messages --------------- U-05 Engineer lays Concrete. M-13 Machinist repairs Y-45 Defender. U-05 Engineer lays Concrete. Backup Propulsion I tumbles out of repair station. Backup Power I tumbles out of repair station. Backup Laser I tumbles out of repair station. Backup Propulsion I tumbles out of repair station. U-05 Engineer lays Concrete. Grenade Launcher destroyed. U-05 Engineer lays Concrete. Aluminum Leg destroyed. Hvy. Ion Engine destroyed. Slammed into Y-45 Defender. U-05 Engineer lays Concrete. U-05 Engineer builds a Wall. U-05 Engineer lays Concrete. U-05 Engineer builds a Door. U-05 Engineer lays Concrete. Map ----- +----------------------------------------------------+ | ?????????????????????????????????????????????????? | | ?????????????????????????????????????????????????? | | ????????????????????###############??????????????? | | ???????????????????## ! ]#??????????????? | | ???????????????????# #??????????????? | | ???????????????????## """ """ """ #??????????????? | | ????????????????????# """ """ """ #??????????????? | | ????????????????????# """ """ """ #??????????????? | | ????????????????????# #??????????????? | | ????????????????????######;#########?????????????? | | ????????????????????????#YYY/ / T #?????????????? | | ????????????????????????# # #?????????????? | | ????????????????????????# # """ #?????????????? | | ????????????????????????# + """ #?????????????? | | ????????????????????????# # """ #?????????????? | | ????????????????????????# # #?????????????? | | ??????????????????#####?# ########?????????????? | | ??????????????????# ?# #????????????????????? | | ??????????????????# # #??????????????? ???? | | ??????????????????# """ # ###????????????? ?? | | ??????????????????# """ + ##???????????? #?? | | ??????????????????# """ # # #####??????## ### | | ??????????????????# """ #uk # = #?????? # | | ??????????????????# """ # # " ##????? # | | ??????????????????# # #[R #????? # | | ??????#???????????# #@ # #????? > # | | ??????+ ??#???????# # # = #????? # | | ??????# #???????# # + #????? # | | ??????# #???????# # ## ## ###??? ? | | ?????## ##??##??####### # #???# #? | | ###### #### ######### u# #???# #? | | # #???# #? | | T + #???# #? | | # #???# #? | | #### ###+########## t # ##### #? | | #???????## #??## # + #? | | * #????????#= """"" #?# # # ! #######+###? | | #######???# """"" ## ## ###########??????????? | | #???# """"" ### #??????????????????? | | ###### #???# """"" ## # ??????????????????? | | ?????# ##### """"" ## # ?????????????????? | | ?????# + """"" ## #[ ????????????????? | | ?????#+##### """"" #### #####???????????????? | | ???? ??# #?## #####??????????????????? | | ???# """ ##########??###???????????????????????? | | ???# """ #?????????????????????????????????????? | | ???# """ #?????????????????????????????????????? | | ???# #?????????????????????????????????????? | | ????########?????????????????????????????????????? | | | +----------------------------------------------------+ Best States ------------- Heat Dissipation 28 Energy Generation 14 Energy Capacity 280 Matter Stores 300 Matter Capacity 300 Sight Range 18 Robot Scan Range 14 Terrain Scan Density 10 Evasion (%) 55 Item Schematics ----------------- None Robot Schematics ------------------ None Fabricated ------------ Nothing Alien Tech Used ----------------- None Achievements -------------- None Challenges ------------ None Game ------ Seed CarbideGuidanceSegregator Manual? 0 Play Time 00:22:56 Cumulative 3.5 hours Start 2024.03.26 @ 19:41:04 End 2024.03.26 @ 20:01:01 Sessions 1 Manual Loads 0 Difficulty Rogue Special Mode None Game No. 6 Rogue 6 Adventurer 0 Explorer 0 Win Type - Total 0 Types 0/0/0/0/0/0/0/0/0 Lore% 4 Gallery% 7 Achievement% 10 Wizard Run 0 Options --------- Layout 1 ASCII 0 Keyboard 0 Movement Numpad Keybinds 0 Fullscreen 2 Font 24/Smallcaps Map View 50x35 Zoom Use 0% Tactical HUD 0 Map Filters NONE Filters NONE Steam 1 RUN: 883f7e7e-43e3-4d9c-9075-7382c1a4994d